bitfinex/quotes_SOLUSD_20220118
["timestamp","ask_amount","ask_price","bid_price","bid_amount"]
[1642542890692,48.31007278,140.84,140.77,0.25]
[1642542890898,48.31007278,140.84,140.77,1.77424424]
[1642542892394,37.65547278,140.84,140.77,12.42814424]
[1642542893427,37.65547278,140.84,140.77,21.01814424]
[1642542894426,37.65547278,140.84,140.77,20.76814424]
[1642542894622,48.31017278,140.84,140.77,8.59]
[1642542894824,3.09,140.83,140.77,8.59]
[1642542895026,3.09,140.83,140.75,6.0]
[1642542895225,3.09,140.83,140.74,8.59]
[1642542895424,3.09,140.83,140.72,10.11424424]
[1642542895625,10.6576,140.8,140.72,10.11424424]
[1642542895827,13.4986,140.8,140.72,10.11424424]
[1642542896129,2.841,140.8,140.73,47.55446375]
[1642542896326,34.37059862,140.81,140.74,8.59]
[1642542896626,34.37059862,140.81,140.74,10.11424424]
[1642542897028,2.841,140.8,140.75,0.25]
[1642542897226,34.37059862,140.81,140.75,0.25]
[1642542898029,34.37059862,140.81,140.75,10.9058]
[1642542898927,34.37059862,140.81,140.75,0.25]
[1642542901333,45.02759862,140.81,140.74,8.59]
[1642542901532,2.841,140.8,140.74,8.59]
[1642542901931,47.86859862,140.81,140.74,8.59]
[1642542902733,47.86859862,140.81,140.75,0.25]
[1642542902935,37.21159862,140.81,140.75,0.25]
[1642542904038,34.37059862,140.81,140.75,0.25]
[1642542904436,45.02749862,140.81,140.74,19.2465]
[1642542904635,2.841,140.8,140.74,19.2465]
[1642542905837,34.37059862,140.81,140.75,10.9058]
[1642542906037,33.5874,140.82,140.75,10.9058]
[1642542907239,40.83085308,140.81,140.75,10.9058]
[1642542908039,40.83085308,140.81,140.75,10.6558]
[1642542908438,43.67185308,140.81,140.75,10.6558]
[1642542908640,43.67185308,140.81,140.76,0.25]
[1642542908839,33.5874,140.82,140.76,0.25]
[1642542909239,22.9313,140.82,140.76,10.9053]
[1642542910841,26.63386944,140.81,140.76,10.9053]
[1642542911845,26.63386944,140.81,140.76,0.25]
[1642542912242,0.25,140.8,140.74,11.431]
[1642542912442,3.091,140.8,140.74,11.431]
[1642542912642,3.091,140.8,140.74,2.841]
[1642542913042,39.579304,140.78,140.74,2.841]
[1642542913243,10.6604,140.77,140.74,2.841]
[1642542913544,6.06439994,140.76,140.74,2.841]
[1642542913842,2.841,140.81,140.74,2.841]
[1642542914043,2.841,140.81,140.72,8.59]
[1642542914446,81.807,140.81,140.73,4.36524424]
[1642542914745,13.498,140.81,140.72,8.59]
[1642542914947,2.841,140.81,140.73,1.52424424]
[1642542915147,68.6827765,140.82,140.74,53.06681437]
[1642542915445,68.6827765,140.82,140.76,10.6551]
[1642542915847,68.6827765,140.82,140.77,0.25]
[1642542916049,22.9313,140.82,140.77,0.25]
[1642542916247,22.9313,140.82,140.76,8.633]
[1642542916646,22.9313,140.82,140.77,10.6551]
[1642542916850,22.9313,140.82,140.77,10.9051]
[1642542917048,71.48137177,140.82,140.77,10.6551]
[1642542919049,22.9313,140.82,140.77,10.6551]
[1642542920153,49.43839354,140.81,140.77,10.6551]
[1642542920958,49.43839354,140.81,140.76,10.6558]
[1642542921354,49.43839354,140.81,140.77,0.25]
[1642542921552,33.5876,140.82,140.77,0.25]
[1642542921753,2.841,140.86,140.77,0.25]
[1642542921962,2.841,140.86,140.75,42.791]
[1642542921963,24.7377,140.85,140.75,42.791]
[1642542922154,2.84,140.84,140.77,10.655]
[1642542922556,42.82122868,140.83,140.77,10.655]
[1642542922755,2.84,140.82,140.77,10.655]
[1642542922955,42.82122868,140.83,140.77,10.655]
[1642542924758,0.25,140.83,140.77,10.655]
[1642542925157,2.84,140.84,140.77,10.655]
[1642542925356,24.7377,140.85,140.78,0.25]
[1642542925556,24.7377,140.85,140.8,10.6525]
[1642542928889,24.7377,140.85,140.79,10.6536]
[1642542929090,24.7377,140.85,140.78,0.25]
[1642542930593,38.2316,140.85,140.78,10.9044]
[1642542930793,38.2316,140.85,140.79,38.63822907]
[1642542931295,38.2316,140.85,140.78,0.25]
[1642542932495,38.2316,140.85,140.79,10.6536]
[1642542932696,0.25,140.84,140.78,0.25]
[1642542932902,10.9047,140.84,140.78,0.25]
[1642542933500,27.5777,140.85,140.78,10.9044]
[1642542933699,24.7377,140.85,140.78,53.30751416]
[1642542933901,24.7377,140.85,140.78,13.7444]
[1642542934102,35.3916,140.85,140.78,13.7444]
[1642542934905,38.2316,140.85,140.78,10.9044]
[1642542935706,38.2316,140.85,140.78,10.6544]
[1642542935904,38.2316,140.85,140.79,8.84]
[1642542935905,35.3916,140.85,140.79,8.84]
[1642542936102,48.84971467,140.86,140.79,55.03094662]
[1642542936302,48.84971467,140.86,140.79,19.4931]
[1642542936706,48.84971467,140.86,140.79,28.0831]
[1642542937104,48.84971467,140.86,140.8,0.25]
[1642542937507,59.50301467,140.86,140.8,0.25]
[1642542938306,2.84,140.85,140.8,0.25]
[1642542938707,13.4941,140.85,140.8,0.25]
[1642542939308,13.4941,140.85,140.78,6.25]
[1642542940110,13.4941,140.85,140.78,44.77150545]
[1642542940307,2.84,140.85,140.78,55.42590545]
[1642542940513,48.84971467,140.86,140.79,2.84]
[1642542940710,48.84971467,140.86,140.8,0.25]
[1642542940910,48.84971467,140.86,140.8,6.25]
[1642542941311,59.50321467,140.86,140.8,6.25]
[1642542941510,59.50321467,140.86,140.81,6.0]
[1642542941710,59.50321467,140.86,140.8,0.25]
[1642542941911,2.84,140.85,140.79,6.25]
[1642542942410,13.4947,140.85,140.77,8.59]
[1642542942614,37.4979,140.85,140.77,8.59]
[1642542942811,0.25,140.84,140.77,8.59]
[1642542943612,10.6571,140.82,140.77,8.59]
[1642542943814,33.83345673,140.82,140.78,0.25]
[1642542944213,33.83345673,140.82,140.76,6.25]
[1642542945314,33.83345673,140.82,140.76,16.9057]
[1642542945515,33.83345673,140.82,140.76,19.7467]
[1642542947245,33.83345673,140.82,140.76,9.091]
[1642542947445,33.83345673,140.82,140.76,17.681]
[1642542948745,33.83345673,140.82,140.76,14.84]
[1642542949849,33.83345673,140.82,140.76,25.4958]
[1642542950253,15.50488579,140.84,140.77,1.52424424]
[1642542950451,12.66388579,140.84,140.77,4.36424424]
[1642542950650,12.66388579,140.84,140.78,0.25]
[1642542951351,44.05588935,140.83,140.78,0.25]
[1642542952653,44.05588935,140.83,140.77,13.4951]
[1642542952860,54.71168935,140.83,140.77,2.84]
[1642542953755,57.55168935,140.83,140.77,2.84]
[1642542954055,59.55997514,140.83,140.77,2.84]
[1642542954256,56.71997514,140.83,140.77,2.84]
[1642542954457,56.71997514,140.83,140.76,25.2458]
[1642542954660,56.71997514,140.83,140.77,0.25]
[1642542954856,56.71997514,140.83,140.77,39.33625199]
[1642542955064,2.00828579,140.83,140.77,49.99125199]
[1642542955460,4.84828579,140.84,140.77,49.99125199]
[1642542955658,2.00828579,140.84,140.77,52.83125199]
[1642542955857,2.00828579,140.84,140.77,13.745]
[1642542956865,36.04885556,140.83,140.77,13.745]
[1642542958062,36.04885556,140.83,140.77,10.905]
[1642542958861,36.04885556,140.83,140.77,0.25]
[1642542959061,46.70485556,140.83,140.77,0.25]
[1642542960262,36.04885556,140.83,140.77,10.9051]
[1642542962063,117.85495556,140.83,140.75,2.84]
[1642542962263,2.841,140.82,140.75,2.84]
[1642542962665,0.25,140.81,140.75,2.84]
[1642542963365,10.908,140.81,140.75,2.84]
[1642542963767,2.841,140.8,140.73,10.6575]
[1642542963966,2.841,140.8,140.74,0.25]
[1642542964167,3.091,140.81,140.74,0.25]
[1642542964368,6.0,140.79,140.74,0.25]
[1642542964567,35.97721584,140.78,140.74,0.25]
[1642542965195,35.97721584,140.78,140.73,0.25]
[1642542965994,35.97721584,140.78,140.72,10.11424424]
[1642542966196,35.97721584,140.78,140.72,19.2489]
[1642542967294,35.97721584,140.78,140.72,8.59]
[1642542967494,38.81821584,140.78,140.72,8.59]
[1642542967895,35.97721584,140.78,140.72,8.59]
[1642542968294,46.63731584,140.78,140.72,8.59]
[1642542968695,0.25,140.77,140.72,8.59]
[1642542968896,0.25,140.77,140.7,2.841]
[1642542968897,2.842,140.76,140.7,2.841]
[1642542969294,0.25,140.75,140.7,2.841]
[1642542969494,13.5057,140.74,140.7,2.841]
[1642542969696,36.04885556,140.73,140.7,2.841]
[1642542969896,6.06439994,140.72,140.7,2.841]
[1642542970096,6.06439994,140.72,140.67,1.90531571]
[1642542971099,6.06439994,140.72,140.65,4.74731571]
[1642542971100,16.72879994,140.72,140.65,4.74731571]
[1642542971296,19.57179994,140.72,140.65,1.90531571]
[1642542971898,19.57179994,140.72,140.66,1.52424424]
[1642542972097,19.57179994,140.72,140.64,2.843]
[1642542972098,16.72879994,140.72,140.64,2.843]
[1642542972298,16.72879994,140.72,140.65,0.25]
[1642542972999,0.25,140.71,140.65,0.25]
[1642542973198,35.97721584,140.7,140.65,0.25]
[1642542973800,35.97721584,140.7,140.64,10.6643]
[1642542973999,35.97721584,140.7,140.63,20.77994424]
[1642542974202,41.83121584,140.7,140.64,0.25]
[1642542974901,52.49711584,140.7,140.64,0.25]
[1642542975301,41.83121584,140.7,140.64,1.77424424]
[1642542975501,35.97721584,140.7,140.64,52.73207215]
[1642542975902,22.7814,140.72,140.64,52.73207215]
[1642542976105,22.7814,140.72,140.64,4.36724424]
[1642542976301,22.7814,140.72,140.64,1.52424424]
[1642542976502,33.4464,140.72,140.64,12.18904424]
[1642542976702,33.4464,140.72,140.63,8.59]
[1642542976903,8.843,140.71,140.63,8.59]
[1642542977107,22.7814,140.72,140.64,47.28473695]
[1642542977108,68.35202668,140.72,140.64,47.28473695]
[1642542977406,68.35202668,140.72,140.65,0.25]
[1642542977804,68.35202668,140.72,140.66,1.52424424]
[1642542978005,68.35202668,140.72,140.65,0.25]
[1642542978406,68.35202668,140.72,140.66,10.6629]
[1642542978807,68.35202668,140.72,140.67,0.25]
[1642542979809,71.4,140.71,140.65,2.843]
[1642542980009,0.25,140.71,140.64,4.36724424]
[1642542980210,3.093,140.71,140.64,1.52424424]
[1642542980810,10.6658,140.7,140.64,1.52424424]
[1642542981011,26.45544472,140.69,140.64,4.36724424]
[1642542981222,26.45544472,140.69,140.65,0.25]
[1642542981610,22.7814,140.72,140.65,0.25]
[1642542981811,10.6649,140.71,140.65,0.25]
[1642542982613,59.94431547,140.71,140.65,0.25]
[1642542983012,62.78731547,140.71,140.65,0.25]
[1642542986916,0.25,140.7,140.63,53.15578665]
[1642542987116,10.6661,140.69,140.65,0.25]
[1642542987716,10.6661,140.69,140.63,51.83703089]
[1642542987918,10.6661,140.69,140.63,10.11424424]
[1642542988518,10.6661,140.69,140.63,20.77984424]
[1642542988917,22.74665593,140.68,140.63,20.77984424]
[1642542989120,33.41365593,140.68,140.64,0.25]
[1642542990020,33.41365593,140.68,140.62,0.25]
[1642542991821,33.41365593,140.68,140.61,0.25]
[1642542992424,2.844,140.69,140.61,12.44114424]
[1642542992624,34.6289,140.7,140.62,11.433]
[1642542992923,34.6289,140.7,140.63,0.25]
[1642542993125,34.6289,140.7,140.63,1.77424424]
[1642542993324,34.6289,140.7,140.64,1.52424424]
[1642542993523,38.16371208,140.69,140.64,1.52424424]
[1642542993724,38.16371208,140.69,140.65,0.25]
[1642542994024,38.16371208,140.69,140.64,1.52424424]
[1642542994832,38.16371208,140.69,140.65,0.25]
[1642542996327,10.6658,140.7,140.65,0.25]
[1642542996528,2.843,140.74,140.65,1.77424424]
[1642542996729,2.843,140.74,140.66,8.59]
[1642542996936,2.843,140.75,140.66,14.242]
[1642542997240,45.14205518,140.76,140.68,38.07866839]
[1642542997428,45.14205518,140.76,140.71,10.6582]
[1642542999054,45.14205518,140.76,140.72,10.9086]
[1642543000761,45.14205518,140.76,140.69,12.95624424]
[1642543000955,45.14205518,140.76,140.69,10.11424424]
[1642543002557,55.80315518,140.76,140.7,0.25]
[1642543003858,10.6604,140.77,140.7,10.9104]
[1642543004258,24.14696032,140.78,140.7,10.9104]
[1642543004760,43.53074627,140.77,140.7,10.9104]
[1642543004959,46.37274627,140.77,140.7,10.9104]
[1642543007064,43.53074627,140.77,140.7,10.9104]
[1642543007461,54.19124627,140.77,140.7,10.9104]
[1642543007661,54.19124627,140.77,140.7,12.43464424]
[1642543009763,54.19124627,140.77,140.7,10.9104]
[1642543010162,3.092,140.76,140.7,10.9104]
[1642543010764,3.092,140.76,140.7,0.25]
[1642543012766,57.03324627,140.77,140.7,10.9103]
[1642543012968,57.03324627,140.77,140.7,10.6603]
[1642543014672,54.19124627,140.77,140.7,10.6603]
[1642543014869,43.53074627,140.77,140.71,0.25]
[1642543015272,43.53074627,140.77,140.7,10.6603]
[1642543015474,46.37274627,140.77,140.7,10.6603]
[1642543015672,46.37274627,140.77,140.69,10.6612]
[1642543015873,46.37274627,140.77,140.69,16.9112]
[1642543016473,46.37274627,140.77,140.69,18.43544424]
[1642543016672,46.37274627,140.77,140.69,58.40108128]
[1642543017073,57.03334627,140.77,140.69,58.40108128]
[1642543018173,54.19134627,140.77,140.69,58.40108128]
[1642543019174,54.19134627,140.77,140.7,2.842]
[1642543019575,54.19134627,140.77,140.71,0.25]
[1642543022780,54.19134627,140.77,140.7,10.6603]
[1642543022981,3.092,140.76,140.67,11.432]
[1642543023280,10.6637,140.74,140.67,13.33731571]
[1642543023682,0.25,140.73,140.67,4.74731571]
[1642543023880,3.092,140.73,140.67,4.74731571]
[1642543024084,28.49532513,140.72,140.67,4.74731571]
[1642543024282,28.49532513,140.72,140.67,2.842]
[1642543025383,28.49532513,140.72,140.64,13.33831571]
[1642543025584,39.16102513,140.72,140.65,0.25]
[1642543026686,39.16102513,140.72,140.65,1.77424424]
[1642543029789,39.16102513,140.72,140.65,0.25]
[1642543031391,42.00402513,140.72,140.65,0.25]
[1642543032824,0.25,140.71,140.64,8.59]
[1642543033021,2.843,140.7,140.64,8.59]
[1642543033222,0.25,140.69,140.64,8.59]
[1642543033421,0.25,140.69,140.62,1.90531571]
[1642543033621,0.25,140.69,140.61,13.33831571]
[1642543033822,73.993,140.68,140.61,4.74831571]
[1642543034025,10.6693,140.66,140.61,4.74831571]
[1642543034223,43.53074627,140.65,140.61,4.74831571]
[1642543034423,43.53074627,140.65,140.61,1.90531571]
[1642543034624,43.53074627,140.65,140.59,2.844]
[1642543035425,43.53074627,140.65,140.59,15.03684424]
[1642543036125,43.53074627,140.65,140.6,0.25]
[1642543036423,43.53074627,140.65,140.59,13.5126]
[1642543036624,43.53074627,140.65,140.59,10.6686]
[1642543037723,43.53074627,140.65,140.6,0.25]
[1642543040125,2.844,140.66,140.6,0.25]
[1642543040525,2.844,140.7,140.6,12.19224424]
[1642543040726,27.726,140.7,140.61,0.25]
[1642543041124,27.726,140.7,140.61,1.77424424]
[1642543041326,50.44270676,140.69,140.62,2.843]
[1642543041525,50.44270676,140.69,140.61,49.83533355]
[1642543042426,50.44270676,140.69,140.62,10.6664]
[1642543042624,0.25,140.68,140.61,49.58533355]
[1642543042824,13.7606,140.68,140.61,1.52424424]
[1642543043028,37.0094,140.68,140.61,1.52424424]
[1642543044830,37.0094,140.68,140.61,1.02424424]
[1642543045830,36.7594,140.68,140.61,1.02424424]
[1642543047130,26.0918,140.68,140.62,0.25]
[1642543047331,23.2488,140.68,140.62,0.25]
[1642543049533,23.2488,140.68,140.62,10.9163]
[1642543052835,23.2488,140.68,140.62,10.6663]
[1642543054436,26.0918,140.68,140.62,10.6663]
[1642543054637,26.0918,140.68,140.61,9.61424424]
[1642543054938,26.0918,140.68,140.61,8.59]
[1642543055138,0.25,140.67,140.61,8.59]
[1642543055737,26.0918,140.68,140.62,0.25]
[1642543055942,0.25,140.67,140.62,10.9165]
[1642543056337,23.2488,140.68,140.62,10.6665]
[1642543056540,23.2488,140.68,140.63,0.25]
[1642543057138,23.2488,140.68,140.62,10.6665]
[1642543058739,26.0918,140.68,140.62,10.6665]
[1642543059142,23.2488,140.68,140.62,10.6665]
[1642543060546,23.2488,140.68,140.63,0.25]
[1642543061947,23.2488,140.68,140.63,10.9157]
[1642543062146,23.2488,140.68,140.63,12.18868697]
[1642543062547,41.05043792,140.7,140.64,0.25]
[1642543062748,65.84303792,140.7,140.64,0.25]
[1642543063152,0.25,140.69,140.64,0.25]
[1642543063948,65.84303792,140.7,140.64,0.25]
[1642543064948,76.50913792,140.7,140.64,0.25]
[1642543065147,0.25,140.69,140.64,0.25]
[1642543065351,0.25,140.69,140.63,0.25]
[1642543065849,0.25,140.69,140.62,0.25]
[1642543067577,0.25,140.69,140.62,10.9164]
[1642543068577,79.35213792,140.7,140.62,10.9164]
[1642543069277,0.25,140.69,140.62,10.6664]
[1642543069479,2.843,140.68,140.62,10.6664]
[1642543070181,3.093,140.69,140.62,10.6664]
[1642543073586,3.093,140.69,140.62,12.18938697]
[1642543073786,3.093,140.69,140.62,10.6664]
[1642543074185,13.7599,140.69,140.62,10.6664]
[1642543077594,13.5099,140.69,140.62,10.6664]
[1642543077893,10.6669,140.69,140.62,10.6664]
[1642543079396,0.25,140.68,140.62,10.6664]
[1642543079597,0.25,140.68,140.62,12.18938697]
[1642543079795,0.25,140.68,140.62,10.6664]
[1642543081098,10.6669,140.69,140.62,10.6664]
[1642543081299,10.6669,140.69,140.63,0.25]
[1642543081502,67.85132371,140.7,140.63,3.093]
[1642543081700,0.25,140.69,140.63,4.61598697]
[1642543082303,0.25,140.69,140.63,13.7585]
[1642543082506,0.25,140.69,140.63,10.9155]
[1642543083403,65.84303792,140.7,140.63,10.9155]
[1642543083603,76.50913792,140.7,140.63,10.9155]
[1642543083803,76.50913792,140.7,140.63,0.25]
[1642543084003,0.25,140.69,140.63,0.25]
[1642543084303,0.25,140.69,140.62,22.0994]
[1642543084504,0.25,140.69,140.63,0.25]
[1642543085227,10.917,140.69,140.62,22.0994]
[1642543085431,10.917,140.69,140.62,2.843]
[1642543086029,6.0,140.68,140.62,2.843]
[1642543086327,0.25,140.67,140.62,2.843]
[1642543087629,0.25,140.67,140.61,12.18998697]
[1642543087825,0.25,140.68,140.61,10.667]
[1642543088026,10.6676,140.68,140.6,19.258]
[1642543088326,23.0245,140.67,140.61,0.25]
[1642543089826,23.0245,140.67,140.61,10.9171]
[1642543090227,23.0245,140.67,140.6,8.59]
[1642543090827,23.0245,140.67,140.6,10.10945994]
[1642543091028,23.0245,140.67,140.6,19.2579]
[1642543091229,33.6929,140.67,140.6,19.2579]
[1642543091529,33.6929,140.67,140.6,8.59]
[1642543091730,33.6929,140.67,140.6,10.10945994]
[1642543091929,23.0245,140.67,140.6,20.77735994]
[1642543092329,23.0245,140.67,140.6,67.40326061]
[1642543093233,23.0245,140.67,140.61,0.25]
[1642543095637,33.693,140.67,140.6,20.77735994]
[1642543096240,0.25,140.66,140.6,20.77735994]
[1642543096843,33.693,140.67,140.6,20.77735994]
[1642543097441,23.0245,140.67,140.6,20.77735994]
[1642543098148,23.0245,140.67,140.6,10.10945994]
[1642543098346,23.0245,140.67,140.6,8.59]
[1642543098546,33.6932,140.67,140.6,8.59]
[1642543099147,0.25,140.66,140.6,8.59]
[1642543099345,49.9718,140.66,140.59,2.843]
[1642543099547,10.6704,140.65,140.59,2.843]
[1642543099747,3.094,140.64,140.59,2.843]
[1642543099947,9.094,140.64,140.59,2.843]
[1642543100147,9.094,140.64,140.57,1.90531571]
[1642543100148,71.13263348,140.63,140.57,1.90531571]
[1642543100349,2.844,140.62,140.57,1.90531571]
[1642543100548,67.4348,140.62,140.57,1.90531571]
[1642543100949,67.4348,140.62,140.54,1.90531571]
[1642543101148,67.4348,140.62,140.54,43.30180777]
[1642543101347,10.6758,140.61,140.54,43.30180777]
[1642543101547,41.05043792,140.6,140.54,43.30180777]
[1642543101747,41.30043792,140.6,140.54,1.90531571]
[1642543102247,41.30043792,140.6,140.52,19.264]
[1642543102448,51.97443792,140.6,140.53,0.25]
[1642543102648,23.3414,140.59,140.53,1.76874197]
[1642543102847,23.3414,140.59,140.53,0.25]
[1642543104851,23.3414,140.59,140.54,1.51874197]
[1642543105058,2.844,140.62,140.55,41.4531396]
[1642543105251,24.2988,140.64,140.55,53.1381396]
[1642543105450,2.00828579,140.65,140.56,12.18904197]
[1642543105651,2.00828579,140.65,140.57,11.434]
[1642543105854,2.00828579,140.65,140.57,13.20274197]
[1642543106053,40.41868579,140.69,140.57,13.20274197]
[1642543106352,2.844,140.67,140.57,11.684]
[1642543106552,49.87463065,140.66,140.57,11.434]
[1642543106755,49.87463065,140.66,140.57,2.844]
[1642543106952,6.0,140.65,140.57,2.844]
[1642543107154,30.4999,140.65,140.55,2.844]
[1642543107353,0.25,140.64,140.55,2.844]
[1642543107556,0.25,140.64,140.56,49.43726292]
[1642543107754,0.25,140.64,140.57,0.25]
[1642543109460,0.25,140.64,140.57,10.9201]
[1642543110771,10.9212,140.64,140.56,49.43726292]
[1642543111185,10.9212,140.64,140.57,0.25]
[1642543111383,0.25,140.64,140.57,0.25]
[1642543111783,0.25,140.64,140.57,1.76874197]
[1642543112387,0.25,140.64,140.57,3.094]
[1642543112586,0.25,140.64,140.57,13.7641]
[1642543113691,0.25,140.64,140.57,10.9201]
[1642543123499,10.9213,140.64,140.57,0.25]
[1642543125199,23.84321822,140.63,140.57,0.25]
[1642543125801,0.25,140.62,140.56,60.10826292]
[1642543126201,2.845,140.63,140.57,0.25]
[1642543126405,38.0154,140.65,140.57,0.25]
[1642543126599,0.25,140.63,140.57,0.25]
[1642543128402,0.25,140.63,140.57,10.9202]
[1642543128801,0.25,140.64,140.57,10.9202]
[1642543129006,24.4999,140.65,140.57,15.28294197]
[1642543129206,2.00828579,140.66,140.57,15.28294197]
[1642543129403,2.00828579,140.66,140.6,10.6679]
[1642543129603,2.00828579,140.66,140.6,18.7489]
[1642543129804,2.00828579,140.66,140.61,0.25]
[1642543130003,2.00828579,140.67,140.61,0.25]
[1642543130304,2.00828579,140.67,140.61,1.76874197]
[1642543130503,2.00828579,140.67,140.6,8.081]
[1642543130703,4.85228579,140.67,140.59,44.98064415]
[1642543130904,26.1916,140.68,140.6,0.25]
[1642543131205,0.34934582,140.66,140.59,46.30590218]
[1642543131403,3.19334582,140.66,140.59,43.46190218]
[1642543131804,3.19334582,140.66,140.6,0.25]
[1642543132011,0.34934582,140.66,140.6,0.25]
[1642543132810,0.34934582,140.66,140.59,43.46190218]
[1642543133311,0.34934582,140.66,140.6,0.25]
[1642543133909,0.34934582,140.66,140.6,1.76874197]
[1642543134610,0.34934582,140.66,140.6,0.25]
[1642543135413,0.34934582,140.66,140.6,10.9178]
[1642543136214,0.34934582,140.66,140.6,0.25]
[1642543137117,0.34934582,140.66,140.59,41.96190218]
[1642543137340,0.34934582,140.66,140.6,0.25]
[1642543137742,36.04110331,140.66,140.59,44.80590218]
[1642543137941,2.844,140.65,140.59,41.96190218]
[1642543138141,36.04110331,140.66,140.59,41.96190218]
[1642543138944,0.34934582,140.64,140.59,41.96190218]
[1642543139645,0.34934582,140.64,140.58,10.6695]
[1642543140344,0.34934582,140.64,140.57,11.434]
[1642543140545,2.844,140.63,140.57,11.434]
[1642543140745,35.24131391,140.62,140.57,2.844]
[1642543141346,0.34934582,140.61,140.57,2.844]
[1642543141645,0.34934582,140.61,140.55,1.90531571]
[1642543141847,0.34934582,140.61,140.56,0.25]
[1642543142947,116.91355973,140.62,140.56,0.25]
[1642543143147,116.91355973,140.62,140.55,0.25]
[1642543143347,6.0,140.61,140.54,10.49531571]
[1642543143548,6.0,140.61,140.54,8.59]
[1642543143549,19.5188,140.61,140.54,8.59]
[1642543143749,0.25,140.6,140.54,8.59]
[1642543145949,10.9243,140.6,140.54,8.59]
[1642543146151,35.69175749,140.59,140.54,8.59]
[1642543146452,41.69175749,140.59,140.54,8.59]
[1642543146650,112.84175749,140.59,140.54,8.59]
[1642543149857,0.25,140.58,140.52,2.845]
[1642543150055,3.095,140.58,140.52,2.845]
[1642543150656,27.5801,140.58,140.52,2.845]
[1642543151261,24.7351,140.58,140.52,2.845]
[1642543151960,24.7351,140.58,140.53,37.78846793]
[1642543152562,24.7351,140.58,140.51,10.6748]
[1642543153267,24.7351,140.58,140.5,11.435]
[1642543153467,24.7351,140.58,140.51,0.25]
[1642543153668,24.7351,140.58,140.51,39.26429195]
[1642543153867,24.4851,140.58,140.51,40.78231538]
[1642543156196,24.4851,140.58,140.51,39.26429195]
[1642543156595,24.4851,140.58,140.51,49.93899195]
[1642543158198,24.4851,140.58,140.52,2.846]
[1642543158398,24.4851,140.58,140.51,52.78399195]
[1642543159803,95.6351,140.58,140.51,52.78399195]
[1642543160004,0.25,140.57,140.51,42.10929195]
[1642543160202,0.25,140.57,140.51,41.85929195]
[1642543160403,27.3311,140.58,140.51,41.85929195]
[1642543160602,6.0,140.59,140.52,8.59]
[1642543161003,6.0,140.58,140.52,8.59]
[1642543161205,2.845,140.61,140.52,32.8013]
[1642543161405,25.5917,140.61,140.52,32.8013]
[1642543161606,0.25,140.6,140.53,0.25]
[1642543162405,0.25,140.6,140.54,10.672]
[1642543162608,0.25,140.6,140.55,45.35469726]
[1642543163706,22.7467,140.61,140.55,45.35469726]
[1642543163909,22.7467,140.61,140.56,0.25]
[1642543164610,2.845,140.63,140.56,0.25]
[1642543164809,6.0,140.62,140.56,0.25]
[1642543165007,6.0,140.63,140.56,0.25]
[1642543166210,2.845,140.62,140.56,10.671]
[1642543166409,6.0,140.63,140.56,10.921]
[1642543166410,8.845,140.63,140.56,10.921]
[1642543166610,8.845,140.63,140.56,10.671]
[1642543167009,0.25,140.62,140.56,10.671]
[1642543167510,8.845,140.63,140.56,10.671]
[1642543167713,0.25,140.62,140.56,10.671]
[1642543168413,0.25,140.62,140.55,56.02649726]
[1642543168613,0.25,140.62,140.56,10.25]
[1642543170718,82.0731,140.62,140.56,10.25]
[1642543170919,82.0731,140.62,140.56,9.75]